Cogmind - Beta 15 @@@ ROGUE MODE // 2025.07.24 @ 13:34:38 Player: beans Result: Destroyed by LR-2A3(j) with Overtuned Pulse Rifle Performance ------------- Evolutions (0) 0 Regions Visited (3) 600 Robots Destroyed (7) 35 Value Destroyed (299) 299 Prototype IDs (13) 260 Alien Tech Used (0) 0 Bonus (791) 791 TOTAL SCORE: 1985 Bonus ------- Registered with UFD 300 Met Optimus in HQ 500 Friendly Fire -9 Cogmind --------- Core Integrity 0/250 Matter 240/300 Energy 70/100 System Corruption 0% Temperature Cool (79) Movement Core (50) Location -7/Scraptown Parts ------- > --- POWER (1) -------- (None) > --- PROPULSION (2) --- (None) > --- UTILITY (2) ------ 0b10 Decoder Chip [Looter] > --- WEAPON (2) ------- Overtuned Pulse Rifle > --- INVENTORY (5) ---- Scrap Suit Peak State ------------ > --- POWER ------------ Light Deuterium Engine > --- PROPULSION ------- Titanium Leg Makeshift Leg > --- UTILITY ---------- Improved Heat Sink Drone Bay > --- WEAPON ----------- Gauss Rifle Makeshift Shrapnel Gun > --- INVENTORY -------- Scrap Suit 0b10 Decoder Chip [Looter] Magnetic Acceleration Cannon Heavy Missile Launcher [Rating: 28] Favorites ----------- Power Ion Engine Engine Ion Engine Propulsion Light Treads Treads Light Treads Leg Makeshift Leg Hover Unit Gravmag System Utility Improved Heat Sink Device Improved Heat Sink Storage Compact Matter Pod Processor 0b10 Decoder Chip [Looter] Weapon Makeshift Shrapnel Gun Energy Gun EM Pulse Gun Ballistic Gun Makeshift Shrapnel Gun Ballistic Cannon Magnetic Acceleration Cannon Launcher Heavy Missile Launcher Build | -11 -10 -10 -7 ------- Run | Yrd Mat Sub Scr Slots Evolved . | . . . . Power . | . . . . Propulsion . | . . . . Utility . | . . . . Weapon . | . . . . Parts Attached 18 | 4 . 2 12 Power 2 | 1 . . 1 Engine 2 | 1 . . 1 Core . | . . . . Reactor . | . . . . Propulsion 5 | 2 . . 3 Treads 2 | 2 . . . Leg 2 | . . . 2 Wheel . | . . . . Hover 1 | . . . 1 Flight . | . . . . Utility 4 | . . 1 3 Device 2 | . . 1 1 Storage 1 | . . . 1 Processor 1 | . . . 1 Hackware . | . . . . Protection . | . . . . Artifact . | . . . . Weapon 7 | 1 . 1 5 Energy Gun 2 | 1 . . 1 Energy Cannon . | . . . . Ballistic Gun 3 | . . 1 2 Ballistic Cannon 1 | . . . 1 Launcher 1 | . . . 1 Special Weapon . | . . . . Impact Weapon . | . . . . Slashing Weapon . | . . . . Piercing Weapon . | . . . . Special Melee Weapon . | . . . . Unidentified Prototypes 1 | . . . 1 Parts Lost 9 | . . . 9 Power 1 | . . . 1 Propulsion 2 | . . . 2 Utility 2 | . . . 2 Weapon 4 | . . . 4 Highest Loss Streak 9 | . . . 9 To Critical Strikes . | . . . . Average Backups 2 | . . . 3 Power . | . . . . Propulsion . | . . . . Utility 1 | . . . 1 Weapon 1 | . . . 1 Tool/Special . | . . . . Unused Backups 2 | . . . 2 Power . | . . . . Propulsion . | . . . . Utility 1 | . . . 1 Weapon 1 | . . . 1 Tool/Special . | . . . . Average Slot Usage (%) 86 | . 57 80 87 Engine 13 | . 14 14 13 Treads 6 | . 28 28 2 Leg 8 | . . . 10 Hover 6 | . . . 7 Device 20 | . . 10 22 Storage 1 | . . . 1 Energy Gun 8 | . 14 14 6 Ballistic Gun 19 | . . 13 20 Peak Build Rating 28 | 4 4 11 28 Average Rating 18 | 2 4 10 20 On Entrance 4 | . 4 4 11 Naked Turns . | . . . . Heaviest Build 18 | 7 7 10 18 Greatest Support 40 | 40 40 40 40 Greatest Overweight (x) 5 | . . . 5 Average Overweight (x) . | . . . . Largest Inventory Capacity 5 | 5 5 5 5 Average Capacity 5 | 5 5 5 5 Most Carried 5 | 2 . 1 5 Average Carried 3 | . . . 3 Final Capacity 5 | 5 5 5 5 Final Carried 2 | . . . 2 Class Distribution -------------------- 100% | Mutant Dominant Class ---------------- Mutant | -10/Materials Mutant | -10/Subcaves Mutant | -7/Scraptown Resources | -11 -10 -10 -7 ----------- Run | Yrd Mat Sub Scr Matter Collected 485 | 231 . 49 205 Remotely . | . . . . Salvage Created 361 | . . 35 326 Parts 17 | . . 2 15 Haulers Intercepted . | . . . . Recyclers Shooed . | . . . . Parts Field Recycled . | . . . . Retrieved Matter . | . . . . Parts Self-Destructed 5 | . . 5 . Prevented . | . . . . Kills | -11 -10 -10 -7 ------- Run | Yrd Mat Sub Scr Combat Hostiles Destroyed 7 | . . 1 6 Guns 6 | . . 1 5 AOE 1 | . . . 1 Classes Destroyed 5 | . . 1 4 Subdweller 1 | . . 1 . Federalist 1 | . . . 1 Explorer 1 | . . . 1 Guru 1 | . . . 1 Scrapper 3 | . . . 3 Best Kill Streak 3 | . . 1 3 Combat Bots Only 3 | . . 1 3 Max Kills in Single Turn 1 | . . 1 1 Gunslinging . | . . . . Exploded 1 | . . . 1 Melee . | . . . . Uniques/NPCs Destroyed . | . . . . Combat | -11 -10 -10 -7 -------- Run | Yrd Mat Sub Scr Hostile Shots Fired 73 | . . 4 69 Missed 25 | . . 2 23 Hits 48 | . . 2 46 Melee 1 | . . . 1 Projectile 47 | . . 2 45 Critical Strikes 1 | . . . 1 Damage Taken 938 | . . 48 890 Core 250 | . . 24 226 Absorbed by Shields . | . . . . Core Remaining (%) 100 | 100 . . . Volleys Fired 25 | . . 5 20 Largest 2 | . . 1 2 Hottest 80 | . . 24 80 Shots Fired 38 | . . 5 33 Gun 33 | . . 5 28 Cannon 4 | . . . 4 Launcher 1 | . . . 1 Special . | . . . . Kinetic 36 | . . 5 31 Thermal 1 | . . . 1 Explosive 1 | . . . 1 Electromagnetic . | . . . . Robot Hit Streak 10 | . . 2 10 Robot Miss Streak 4 | . . 1 4 Penetration Max 1 | . . . 1 Secondary Targets . | . . . . Shots Hit Robots 24 | . . 3 21 Core Hits 16 | . . 3 13 Critical Kills . | . . . . Critical Parts Destroyed . | . . . . Critical Strikes . | . . . . Melee Attacks . | . . . . Impact . | . . . . Slashing . | . . . . Piercing . | . . . . Sneak Attacks . | . . . . Combat Hostiles . | . . . . Follow-up Attacks . | . . . . Damage Inflicted 664 | . . 58 606 Guns 453 | . . 58 395 Cannons 92 | . . . 92 Explosions 119 | . . . 119 Melee . | . . . . Ramming . | . . . . Kinetic 523 | . . 58 465 Thermal 22 | . . . 22 Explosive 119 | . . . 119 Electromagnetic . | . . . . Impact . | . . . . Slashing . | . . . . Piercing . | . . . . Highest Corruption . | . . . . Average Corruption . | . . . . Corruption Purged . | . . . . Corruption Blocked . | . . . . Overload Shots . | . . . . Overflow Damage 26 | . . . 26 Projectiles 26 | . . . 26 Explosions . | . . . . Melee . | . . . . Knockbacks 2 | . . . 2 Impact . | . . . . Kinetic 2 | . . . 2 Secondary . | . . . . Self-Inflicted Damage . | . . . . Shots . | . . . . Rammed . | . . . . Targets Rammed . | . . . . Kicked . | . . . . Crushed . | . . . . Highest Temperature 67 | . . . 67 Average Temperature 20 | . . . 20 Received Heat Transfer 475 | . . . 475 Siege Activations . | . . . . Martial Activations . | . . . . Shielding Activations . | . . . . Robots Disrupted . | . . . . Combat Hostiles . | . . . . Robots Corrupted . | . . . . Combat Hostiles . | . . . . Parts Fried . | . . . . Impact Corruptions . | . . . . Robots Melted . | . . . . Combat Hostiles . | . . . . Parts Melted 2 | . . 1 1 Heat Transferred 37 | . . . 37 Parts Sabotaged . | . . . . Parts Stolen . | . . . . Parts Stripped . | . . . . Power Chain Reactions . | . . . . Alert | -11 -10 -10 -7 ------- Run | Yrd Mat Sub Scr Maximum Alert Level . | . . . . Low Security (%) 100 | 100 100 . . Level 1 . | . . . . Level 2 . | . . . . Level 3 . | . . . . Level 4 . | . . . . Level 5 . | . . . . High Security . | . . . . Max Security . | . . . . Peak Influence . | . . . . Initial . | . . . . Average . | . . . . Influence Increases . | . . . . Influence Decreases . | . . . . Squads Dispatched . | . . . . Investigation . | . . . . Extermination . | . . . . Reinforcement . | . . . . Assault . | . . . . Garrison . | . . . . Intercept . | . . . . Searches Triggered . | . . . . Construction Impeded . | . . . . Haulers Reinforced . | . . . . Active Scanning Responses . | . . . . Cargo Convoy Interrupts . | . . . . Stealth | -11 -10 -10 -7 --------- Run | Yrd Mat Sub Scr Distress Signals . | . . . . Communications Jammed . | . . . . Distress Signals . | . . . . Times Spotted 14 | . . 4 10 Peak Tracking Total 5 | . . 2 5 Tactical Retreats . | . . . . Traps | -11 -10 -10 -7 ------- Run | Yrd Mat Sub Scr Traps Triggered . | . . . . Indirectly . | . . . . Trap Hack Attempts . | . . . . Triggered . | . . . . Disarmed . | . . . . Reprogrammed . | . . . . Reused . | . . . . Traps Extracted . | . . . . Installed . | . . . . Triggered . | . . . . Machines | -11 -10 -10 -7 ---------- Run | Yrd Mat Sub Scr Machines Disabled . | . . . . Max in Single Turn . | . . . . Machines Repaired . | . . . . Machines Dismantled . | . . . . Machines Sabotaged . | . . . . Overloaded Fab Kills . | . . . . Hacking | -11 -10 -10 -7 --------- Run | Yrd Mat Sub Scr Machines Accessed 2 | . . . 2 Terminals . | . . . . Fabricators . | . . . . Repair Stations . | . . . . Recycling Units . | . . . . Scanalyzers . | . . . . Garrison Access . | . . . . Total Hacks 5 | . . . 5 Successful 5 | . . . 5 Failed . | . . . . Catastrophic . | . . . . Database Lockouts . | . . . . Manual . | . . . . Terminals . | . . . . Fabricators . | . . . . Repair Stations . | . . . . Recycling Units . | . . . . Scanalyzers . | . . . . Garrison Access . | . . . . Terminal Hacks 5 | . . . 5 Record 4 | . . . 4 Proto ID Catalog 1 | . . . 1 Fabricator Hacks . | . . . . Repair Station Hacks . | . . . . Recycling Unit Hacks . | . . . . Scanalyzer . | . . . . Garrison Access Hacks . | . . . . Unauthorized Hacks . | . . . . Terminals . | . . . . Fabricators . | . . . . Repair Stations . | . . . . Recycling Units . | . . . . Scanalyzers . | . . . . Garrison Access . | . . . . Data Cores Recovered . | . . . . Used . | . . . . Hacking Detections . | . . . . Full Trace Events . | . . . . Feedback Events . | . . . . Feedback Blocked . | . . . . Robot Schematics Acquired . | . . . . Robots Built . | . . . . Authchips . | . . . . Time . | . . . . Total Robot Build Rating . | . . . . Part Schematics Acquired . | . . . . Parts Built . | . . . . Authchips . | . . . . Time . | . . . . Total Part Build Rating . | . . . . Parts Repaired . | . . . . Time . | . . . . Parts Recycled . | . . . . Recycled Matter . | . . . . Retrieved Matter . | . . . . Retrieved Components . | . . . . Parts Scanalyzed . | . . . . Part Schematics Acquired . | . . . . Parts Damaged . | . . . . Bothacking | -11 -10 -10 -7 ------------ Run | Yrd Mat Sub Scr Used RIF Installer . | . . . . Robots Hacked . | . . . . Non-combat . | . . . . Combat . | . . . . Robot Hacks Applied . | . . . . Relay Couplers Released . | . . . . Fabnet Peak Effective % . | . . . . Robots Rewired . | . . . . Allies Hacked . | . . . . Hacks Repelled . | . . . . Allies | -11 -10 -10 -7 -------- Run | Yrd Mat Sub Scr Total Allies . | . . . . Largest Group . | . . . . Highest-Rated Group . | . . . . Highest-Rated Ally . | . . . . Total Orders 6 | . . . 6 EXPLORE 3 | . . . 3 RETURN 3 | . . . 3 Ally Attacks . | . . . . Total Damage . | . . . . Kills . | . . . . Allies Corrupted . | . . . . Allies Melted 2 | . . . 2 Intel | -11 -10 -10 -7 ------- Run | Yrd Mat Sub Scr Active Infowar (turns) 16 | . . . 16 Decoding 16 | . . . 16 Robot Analysis Total . | . . . . Derelict Logs Recovered . | . . . . Drone Launches 5 | . . . 5 Drone Recoveries 5 | . . . 5 Exploration | -11 -10 -10 -7 ------------- Run | Yrd Mat Sub Scr Turns Passed 3422 | 81 46 544 2751 Spaces Moved 2007 | 55 24 172 1756 Core 17 | 13 . . 4 Treads 356 | 42 24 172 118 Legs 436 | . . . 436 Wheels . | . . . . Hover 1198 | . . . 1198 Flight . | . . . . Fastest Speed 50 | 50 160 160 50 Average Speed 130 | 134 160 160 126 Slowest Speed 300 | 160 160 160 300 Overloaded Moves . | . . . . Propulsion Burnouts . | . . . . Robots Hopped . | . . . . Potential Cave-ins . | . . . . Cave-ins Triggered . | . . . . Exploration Rate (%) 26 | 3 7 9 88 Regions Visited 3 Branch Regions 2 Pre-discovered Areas . | . . . . Known Exits Taken . | . . . . Unknown Exits Taken 3 | 1 1 1 . Scrap Searched 8 | . . 2 6 Spaces Dug . | . . . . Terrain Destroyed 5 | . . . 5 Melee . | . . . . Projectile . | . . . . AOE 5 | . . . 5 Terrain Rammed . | . . . . Walls Destroyed . | . . . . Machines Disabled . | . . . . Actions | -11 -10 -10 -7 --------- Run | Yrd Mat Sub Scr Total 2782 | 62 32 436 2252 Wait 706 | . 9 256 441 Move 2004 | 54 23 171 1756 Hop . | . . . . Pick Up 15 | 4 . 2 9 Fast Attach 6 | . . . 6 Attach 12 | 4 . 2 6 Detach . | . . . . Swap 2 | . . . 2 Drop 9 | . . . 9 Fire 25 | . . 5 20 Melee . | . . . . Ram . | . . . . Kick . | . . . . Crush . | . . . . Escape Stasis . | . . . . Rewire 3 | . . . 3 Trap . | . . . . Miscellaneous . | . . . . Route ------- -11/Scrapyard -10/Materials -10/Subcaves -7/Scraptown (discovered 2 exits: *Fac x2) History --------- Turn | Location | Event 5 | -11/Scrapyard | Discovered new exit (range 15) 82 | -11/Scrapyard | Entered Materials 83 | -10/Materials | Met a group of wandering Federalists 119 | -10/Materials | Discovered new exit (range 7) 128 | -10/Materials | Entered Subcaves 128 | -10/Subcaves | Accompanied by 3 allies 129 | -10/Subcaves | Continued accompanying wandering Federalists (5) 129 | -10/Subcaves | Approached by a straggling Scientist 131 | -10/Subcaves | Shifting Twisted Machinery released Spk. Treads 131 | -10/Subcaves | Shifting Twisted Machinery released Mak. Shrapnel Gun 317 | -10/Subcaves | Build established: Mutant 374 | -10/Subcaves | Wandering Federalist uncovered a shortcut to Scraptown 672 | -10/Subcaves | Entered Scraptown 701 | -7/Scraptown | Lost 3 allies 944 | -7/Scraptown | Discovered new exit (range 11) 1044 | -7/Scraptown | Visited Comm Corps 1089 | -7/Scraptown | Visited Symbiants 1307 | -7/Scraptown | Visited Bundlers 1407 | -7/Scraptown | Visited UFD Registry 1407 | -7/Scraptown | Registered with UFD as "Zeromech" 1439 | -7/Scraptown | Visited Scrapoid Pod Storage 1466 | -7/Scraptown | Visited Infowarlord's Domain 1508 | -7/Scraptown | Visited Scrapoid Research Area 1547 | -7/Scraptown | Visited Derelict Rescue Squad 1601 | -7/Scraptown | Visited Botcube Research 1620 | -7/Scraptown | Visited Scrap Suit Storage 1640 | -7/Scraptown | Found Scrap Suit 1667 | -7/Scraptown | Visited LU-1G1's Boring Crew 1767 | -7/Scraptown | Visited Science Guys 1818 | -7/Scraptown | Visited Sword Containment 1844 | -7/Scraptown | Visited Research Penetration Think Tank 2413 | -7/Scraptown | Visited Awakened 2798 | -7/Scraptown | Met Optimus 2798 | -7/Scraptown | Accepted into 0bPrime 3198 | -7/Scraptown | Civil war broke out across Scraptown 3272 | -7/Scraptown | Identified exit to Factory 3329 | -7/Scraptown | Lost 3 allies 3408 | -7/Scraptown | Core integrity fell below 50% 3413 | -7/Scraptown | Optimus destroyed in the chaos of civil war 3421 | -7/Scraptown | Core integrity fell below 20% 3423 | -7/Scraptown | Destroyed by LR-2A3(j) with Overtuned Pulse Rifle Last Messages --------------- PU-2OR(j) destroyed. Slug penetrates Machine. Destroyed Lgt. Ion Engine. Destroyed Imp. Sensor Array. 5O-4C8(x) knocked back. 5O-4C8(x) destroyed. Magnetic Acceleration Cannon destroyed. Mak. Leg destroyed. DN-0VJ(j) destroyed. Critical hit (Burn: +50). Hvy. Missile Launcher destroyed. Slug penetrates 6O-PG5(g). 6O-PG5(g) destroyed. ANNOUNCEMENT: The traitor Optimus has been dealt with. Put down any remaining collaborators. Titanium Leg destroyed. Slug penetrates LR-2A3(j). Gauss Rifle destroyed. Imp. Heat Sink destroyed. Acquired Ovr. Pulse Rifle. Map ----- +----------------------------------------------------+ | ?????????????????????????????????????????????????? | | ?????????????????????????????????????????????????? | | ?????????????????????????????????????????????????? | | ???????????????????????????????????????????????